[Event "*** MasterClass Titled Tuesday Blitz"]
[Site "Chess.com"]
[Date "2017.10.03"]
[Round "4"]
[White "TamNguyen2"]
[Black "TryingToGetBetter94"]
[Result "0-1"]
[WhiteElo "2225"]
[BlackElo "2309"]
[TimeControl "180+2"]
[EndTime "13:51:28 PDT"]
[Termination "TryingToGetBetter94 won by resignation"]

1. c4 {[%clk 0:03:01.9]} 1... Nf6 {[%clk 0:03:00.4]} 2. Nf3 {[%clk 0:03:01.4]}
2... e6 {[%clk 0:02:59.2]} 3. g3 {[%clk 0:03:01.9]} 3... d5 {[%clk 0:03:00.1]}
4. Bg2 {[%clk 0:03:02.5]} 4... c5 {[%clk 0:03:01.4]} 5. O-O {[%clk 0:03:01.3]}
5... d4 {[%clk 0:03:02.7]} 6. a3 {[%clk 0:03:00.9]} 6... Nc6 {[%clk 0:03:03.7]}
7. d3 {[%clk 0:02:59.9]} 7... e5 {[%clk 0:03:03.1]} 8. e3 {[%clk 0:03:00.8]}
8... Be7 {[%clk 0:03:04.3]} 9. e4 {[%clk 0:02:59.9]} 9... O-O {[%clk 0:03:05.1]}
10. Ne1 {[%clk 0:02:57.6]} 10... Ne8 {[%clk 0:03:05.8]} 11. f4 {[%clk
0:02:57.7]} 11... f5 {[%clk 0:03:05.5]} 12. Nd2 {[%clk 0:02:53]} 12... exf4
{[%clk 0:03:05.9]} 13. gxf4 {[%clk 0:02:53.3]} 13... Nf6 {[%clk 0:03:02.6]} 14.
e5 {[%clk 0:02:47]} 14... Ng4 {[%clk 0:03:04]} 15. Ndf3 {[%clk 0:02:46.7]} 15...
Ne3 {[%clk 0:03:04.5]} 16. Bxe3 {[%clk 0:02:40.4]} 16... dxe3 {[%clk 0:03:06.4]}
17. Nc2 {[%clk 0:02:39.3]} 17... g5 {[%clk 0:03:03.3]} 18. Nxe3 {[%clk 0:02:29]}
18... gxf4 {[%clk 0:03:02.4]} 19. Nd5 {[%clk 0:02:29.3]} 19... Be6 {[%clk
0:03:02.4]} 20. Nxf4 {[%clk 0:02:28]} 20... Nd4 {[%clk 0:02:59.4]} 21. Nxd4
{[%clk 0:02:08.8]} 21... Qxd4+ {[%clk 0:03:00.5]} 22. Kh1 {[%clk 0:02:10.1]}
22... Bf7 {[%clk 0:02:52.6]} 23. Qe2 {[%clk 0:02:01.9]} 23... Bg5 {[%clk
0:02:46.5]} 24. Nd5 {[%clk 0:01:41]} 24... Rae8 {[%clk 0:02:35.1]} 25. Rae1
{[%clk 0:01:41]} 25... Bh4 {[%clk 0:02:36.5]} 26. Qe3 {[%clk 0:01:10.2]} 26...
Kh8 {[%clk 0:02:07.8]} 27. Qxd4 {[%clk 0:01:09.3]} 27... cxd4 {[%clk 0:02:09.7]}
28. Re2 {[%clk 0:01:06.4]} 28... Bh5 {[%clk 0:02:10.6]} 29. Bf3 {[%clk
0:01:07.3]} 29... Bg6 {[%clk 0:01:58.9]} 30. Nf4 {[%clk 0:01:05.7]} 30... Bf7
{[%clk 0:01:55.4]} 31. e6 {[%clk 0:01:03.1]} 31... Bg8 {[%clk 0:01:56.6]} 32.
Bxb7 {[%clk 0:01:02.9]} 32... Rf6 {[%clk 0:01:52.8]} 33. Bd5 {[%clk 0:01:03]}
33... Rh6 {[%clk 0:01:52.8]} 34. b4 {[%clk 0:00:47.4]} 34... Bg3 {[%clk
0:01:49.9]} 35. Kg1 {[%clk 0:00:48]} 35... Bh4 {[%clk 0:01:44.8]} 36. c5 {[%clk
0:00:45.9]} 36... Bd8 {[%clk 0:01:45.5]} 37. b5 {[%clk 0:00:38.5]} 37... Be7
{[%clk 0:01:41.1]} 38. Rc1 {[%clk 0:00:33.6]} 38... Bg5 {[%clk 0:01:38.2]} 39.
Rf2 {[%clk 0:00:34.4]} 39... Rh4 {[%clk 0:01:38.2]} 40. Rcf1 {[%clk 0:00:32]}
40... Re7 {[%clk 0:01:32]} 41. b6 {[%clk 0:00:30.6]} 41... axb6 {[%clk
0:01:21.9]} 42. cxb6 {[%clk 0:00:32.4]} 42... Re8 {[%clk 0:01:23.3]} 43. b7
{[%clk 0:00:31.9]} 43... Be7 {[%clk 0:01:24.4]} 44. a4 {[%clk 0:00:31.3]} 44...
Bd6 {[%clk 0:01:20.4]} 45. Ng2 {[%clk 0:00:33.2]} 45... Bxh2+ {[%clk 0:01:14.4]}
46. Kh1 {[%clk 0:00:34]} 46... Rh6 {[%clk 0:01:16.3]} 47. Ne1 {[%clk 0:00:26.9]}
47... Bg3+ {[%clk 0:01:05.3]} 48. Kg1 {[%clk 0:00:27.9]} 48... Bxf2+ {[%clk
0:01:04.5]} 49. Kxf2 {[%clk 0:00:29]} 49... Bxe6 {[%clk 0:01:04.4]} 50. Bxe6
{[%clk 0:00:26.5]} 50... Rhxe6 {[%clk 0:01:06.3]} 51. Nf3 {[%clk 0:00:26]} 51...
Re2+ {[%clk 0:00:57.4]} 52. Kg3 {[%clk 0:00:26.3]} 52... f4+ {[%clk 0:00:46]}
53. Kxf4 {[%clk 0:00:26.7]} 53... Rf8+ {[%clk 0:00:47.1]} 54. Kg3 {[%clk
0:00:27.4]} 54... Rb2 {[%clk 0:00:44]} 55. Ra1 {[%clk 0:00:18]} 0-1

[Event "*** MasterClass Titled Tuesday Blitz"]
[Site "Chess.com"]
[Date "2017.10.03"]
[Round "4"]
[White "SergeiAza"]
[Black "Kirill_Klukin"]
[Result "1-0"]
[WhiteElo "2704"]
[BlackElo "2497"]
[TimeControl "180+2"]
[EndTime "13:51:36 PDT"]
[Termination "SergeiAza won by resignation"]

1. e4 {[%clk 0:02:56.6]} 1... c5 {[%clk 0:03:00.4]} 2. Nf3 {[%clk 0:02:56.9]}
2... Nc6 {[%clk 0:03:01.5]} 3. Bb5 {[%clk 0:02:57.1]} 3... d6 {[%clk 0:03:01]}
4. O-O {[%clk 0:02:54.7]} 4... Bd7 {[%clk 0:03:01.3]} 5. Re1 {[%clk 0:02:55]}
5... Nf6 {[%clk 0:02:59.2]} 6. c3 {[%clk 0:02:54.8]} 6... a6 {[%clk 0:02:59.6]}
7. Bf1 {[%clk 0:02:54.7]} 7... Bg4 {[%clk 0:02:59.4]} 8. h3 {[%clk 0:02:54.5]}
8... Bxf3 {[%clk 0:02:59.8]} 9. Qxf3 {[%clk 0:02:54.7]} 9... g6 {[%clk
0:03:00.6]} 10. d3 {[%clk 0:02:55.7]} 10... Bg7 {[%clk 0:03:01.9]} 11. Be3
{[%clk 0:02:57.2]} 11... Nd7 {[%clk 0:03:03.3]} 12. Nd2 {[%clk 0:02:58]} 12...
O-O {[%clk 0:03:04.7]} 13. Qg3 {[%clk 0:02:51]} 13... b5 {[%clk 0:03:01.6]} 14.
Nf3 {[%clk 0:02:47]} 14... Nde5 {[%clk 0:02:52.5]} 15. Nxe5 {[%clk 0:02:43.4]}
15... Bxe5 {[%clk 0:02:50.8]} 16. f4 {[%clk 0:02:43.8]} 16... Bg7 {[%clk
0:02:50.7]} 17. Rad1 {[%clk 0:02:38.1]} 17... b4 {[%clk 0:02:45.3]} 18. d4
{[%clk 0:02:37.2]} 18... Qa5 {[%clk 0:02:36.3]} 19. d5 {[%clk 0:01:47]} 19...
Nb8 {[%clk 0:02:20.7]} 20. cxb4 {[%clk 0:01:13.3]} 20... cxb4 {[%clk 0:02:03.7]}
21. Bc4 {[%clk 0:01:09.6]} 21... Nd7 {[%clk 0:02:01.6]} 22. h4 {[%clk
0:01:03.1]} 22... Rac8 {[%clk 0:01:36.2]} 23. b3 {[%clk 0:01:03.6]} 23... Nf6
{[%clk 0:01:25.9]} 24. Bd4 {[%clk 0:00:54.3]} 24... Nh5 {[%clk 0:01:20.8]} 25.
Qf2 {[%clk 0:00:55.2]} 25... Bxd4 {[%clk 0:01:20.3]} 26. Rxd4 {[%clk 0:00:56]}
26... Qc5 {[%clk 0:01:07.7]} 27. e5 {[%clk 0:00:53]} 27... Ng7 {[%clk
0:01:00.7]} 28. Rd2 {[%clk 0:00:45]} 28... Qxf2+ {[%clk 0:01:00.5]} 29. Kxf2
{[%clk 0:00:45.7]} 29... a5 {[%clk 0:01:01.3]} 30. g4 {[%clk 0:00:34.1]} 30...
h5 {[%clk 0:00:54.8]} 31. gxh5 {[%clk 0:00:28.4]} 31... Nxh5 {[%clk 0:00:55.5]}
32. Kf3 {[%clk 0:00:29]} 32... a4 {[%clk 0:00:55.6]} 33. Rg2 {[%clk 0:00:25.7]}
33... Ng7 {[%clk 0:00:55.8]} 34. e6 {[%clk 0:00:20.8]} 34... fxe6 {[%clk
0:00:49.3]} 35. Rxg6 {[%clk 0:00:20.4]} 35... e5 {[%clk 0:00:47.1]} 36. Reg1
{[%clk 0:00:20.2]} 36... Rxf4+ {[%clk 0:00:48.1]} 37. Ke3 {[%clk 0:00:21.3]}
37... Rf7 {[%clk 0:00:48.7]} 38. h5 {[%clk 0:00:22.3]} 38... Kh8 {[%clk
0:00:41.7]} 39. Rh6+ {[%clk 0:00:20.6]} 39... Kg8 {[%clk 0:00:41.5]} 40. Rhg6
{[%clk 0:00:22.1]} 40... Kh8 {[%clk 0:00:42.4]} 41. Bd3 {[%clk 0:00:22.7]} 41...
axb3 {[%clk 0:00:32.1]} 42. axb3 {[%clk 0:00:23]} 42... Rcf8 {[%clk 0:00:17.7]}
43. Rh6+ {[%clk 0:00:22]} 43... Kg8 {[%clk 0:00:18.8]} 44. Bh7+ {[%clk
0:00:22.5]} 44... Kh8 {[%clk 0:00:20.1]} 45. Bf5+ {[%clk 0:00:23.4]} 45... Kg8
{[%clk 0:00:21.5]} 46. Be6 {[%clk 0:00:24.9]} 46... e4 {[%clk 0:00:21.9]} 47.
Kxe4 {[%clk 0:00:25.2]} 47... Rc8 {[%clk 0:00:21.8]} 48. Bxc8 {[%clk 0:00:24.1]}
1-0

[Event "*** MasterClass Titled Tuesday Blitz"]
[Site "Chess.com"]
[Date "2017.10.03"]
[Round "4"]
[White "petrpalachev"]
[Black "Cruel_Yaro"]
[Result "1/2-1/2"]
[WhiteElo "2600"]
[BlackElo "2697"]
[TimeControl "180+2"]
[EndTime "13:51:37 PDT"]
[Termination "Game drawn by repetition"]

1. Nf3 {[%clk 0:03:01.9]} 1... a6 {[%clk 0:03:01.9]} 2. d4 {[%clk 0:03:01.3]}
2... Nf6 {[%clk 0:03:02.1]} 3. Nbd2 {[%clk 0:03:01.4]} 3... c5 {[%clk
0:03:00.9]} 4. e3 {[%clk 0:02:59.7]} 4... e6 {[%clk 0:03:01.3]} 5. Bd3 {[%clk
0:02:59.1]} 5... d5 {[%clk 0:03:01.4]} 6. b3 {[%clk 0:02:59.5]} 6... Nc6 {[%clk
0:03:03.3]} 7. a3 {[%clk 0:03:00.5]} 7... cxd4 {[%clk 0:03:02]} 8. exd4 {[%clk
0:03:02.4]} 8... Bd6 {[%clk 0:03:03.3]} 9. Bb2 {[%clk 0:03:03]} 9... O-O {[%clk
0:03:03.8]} 10. O-O {[%clk 0:03:03.6]} 10... b6 {[%clk 0:03:03.5]} 11. Qe2
{[%clk 0:03:03.5]} 11... Bb7 {[%clk 0:03:04.4]} 12. Rfe1 {[%clk 0:03:04.2]}
12... Ne7 {[%clk 0:03:01.5]} 13. Ne5 {[%clk 0:03:04.6]} 13... Nd7 {[%clk
0:03:00.7]} 14. Ndf3 {[%clk 0:02:41.8]} 14... Ng6 {[%clk 0:03:00.5]} 15. g3
{[%clk 0:02:40.8]} 15... Ndxe5 {[%clk 0:02:48.1]} 16. Nxe5 {[%clk 0:02:41.1]}
16... Bxe5 {[%clk 0:02:18.9]} 17. dxe5 {[%clk 0:02:43]} 17... a5 {[%clk
0:02:19.7]} 18. Bd4 {[%clk 0:02:42]} 18... Qc7 {[%clk 0:02:06]} 19. Qe3 {[%clk
0:02:41]} 19... Ba6 {[%clk 0:02:06.6]} 20. Bxb6 {[%clk 0:02:40.1]} 20... Qc6
{[%clk 0:02:02.8]} 21. Bc5 {[%clk 0:02:39.6]} 21... Rfc8 {[%clk 0:02:01]} 22. b4
{[%clk 0:02:40.8]} 22... Bxd3 {[%clk 0:02:01.2]} 23. cxd3 {[%clk 0:02:41.5]}
23... axb4 {[%clk 0:01:59.5]} 24. axb4 {[%clk 0:02:43.4]} 24... Qb5 {[%clk
0:01:55.7]} 25. d4 {[%clk 0:02:29.2]} 25... Qc4 {[%clk 0:01:41.9]} 26. h4 {[%clk
0:02:19.7]} 26... Nf8 {[%clk 0:01:38.2]} 27. h5 {[%clk 0:02:11]} 27... h6 {[%clk
0:01:38.6]} 28. Rec1 {[%clk 0:01:45.7]} 28... Qb5 {[%clk 0:01:34.7]} 29. Kg2
{[%clk 0:01:35.3]} 29... Nd7 {[%clk 0:01:34.7]} 30. Qd2 {[%clk 0:01:21.7]} 30...
Ra4 {[%clk 0:01:26]} 31. Rxa4 {[%clk 0:01:12.7]} 31... Qxa4 {[%clk 0:01:27.1]}
32. Qb2 {[%clk 0:01:08.1]} 32... Qb5 {[%clk 0:01:23.2]} 33. g4 {[%clk
0:00:55.7]} 33... f6 {[%clk 0:01:19.7]} 34. exf6 {[%clk 0:00:49.9]} 34... Nxf6
{[%clk 0:01:20.4]} 35. f3 {[%clk 0:00:50.5]} 35... Ra8 {[%clk 0:01:18.9]} 36.
Ra1 {[%clk 0:00:32.2]} 36... Rxa1 {[%clk 0:01:15]} 37. Qxa1 {[%clk 0:00:34.1]}
37... Qe2+ {[%clk 0:01:16.2]} 38. Kg3 {[%clk 0:00:34.7]} 38... Qe3 {[%clk
0:01:14.1]} 39. Qf1 {[%clk 0:00:25.9]} 39... Ne4+ {[%clk 0:00:51.9]} 40. Kg2
{[%clk 0:00:23.6]} 40... Nc3 {[%clk 0:00:47.4]} 41. b5 {[%clk 0:00:13.8]} 41...
Qd2+ {[%clk 0:00:47.8]} 42. Kh3 {[%clk 0:00:09.4]} 42... Ne2 {[%clk 0:00:28.1]}
43. b6 {[%clk 0:00:08.5]} 43... Nf4+ {[%clk 0:00:28.7]} 44. Kg3 {[%clk
0:00:07.9]} 44... Ne2+ {[%clk 0:00:29.7]} 45. Kh3 {[%clk 0:00:07.4]} 45... Nf4+
{[%clk 0:00:30.6]} 46. Kg3 {[%clk 0:00:08.8]} 46... Ne2+ {[%clk 0:00:30.6]} 47.
Kg2 {[%clk 0:00:04.5]} 47... Nf4+ {[%clk 0:00:21.3]} 48. Kg3 {[%clk 0:00:05.2]}
48... Ne2+ {[%clk 0:00:21.8]} 49. Kh3 {[%clk 0:00:06.7]} 49... Nf4+ {[%clk
0:00:22.7]} 50. Kg3 {[%clk 0:00:08.1]} 1/2-1/2

[Event "*** MasterClass Titled Tuesday Blitz"]
[Site "Chess.com"]
[Date "2017.10.03"]
[Round "4"]
[White "sergiochess83"]
[Black "severomorskij"]
[Result "1/2-1/2"]
[WhiteElo "2719"]
[BlackElo "2661"]
[TimeControl "180+2"]
[EndTime "13:51:41 PDT"]
[Termination "Game drawn by repetition"]

1. e4 {[%clk 0:03:01.9]} 1... c5 {[%clk 0:03:00.1]} 2. Nf3 {[%clk 0:03:02.3]}
2... Nc6 {[%clk 0:02:59.3]} 3. Nc3 {[%clk 0:03:01.3]} 3... e5 {[%clk 0:02:58.8]}
4. Bc4 {[%clk 0:03:00.6]} 4... Be7 {[%clk 0:02:59.5]} 5. d3 {[%clk 0:03:00.7]}
5... Nf6 {[%clk 0:03:00.2]} 6. Nd2 {[%clk 0:03:01.1]} 6... d6 {[%clk 0:02:56.1]}
7. Nf1 {[%clk 0:03:02.1]} 7... O-O {[%clk 0:02:56.8]} 8. Ne3 {[%clk 0:03:03.1]}
8... Nd7 {[%clk 0:02:56.2]} 9. a4 {[%clk 0:03:02.9]} 9... Nb6 {[%clk 0:02:49.6]}
10. Ba2 {[%clk 0:02:59.6]} 10... Bg5 {[%clk 0:02:27.8]} 11. O-O {[%clk
0:02:54.8]} 11... Kh8 {[%clk 0:02:07.7]} 12. Bd2 {[%clk 0:02:35.9]} 12... a5
{[%clk 0:01:42.7]} 13. Kh1 {[%clk 0:02:20.6]} 13... Be6 {[%clk 0:01:38.5]} 14.
Ned5 {[%clk 0:02:14.1]} 14... Bxd2 {[%clk 0:01:29.1]} 15. Qxd2 {[%clk 0:02:16]}
15... Bxd5 {[%clk 0:01:15.3]} 16. Bxd5 {[%clk 0:02:03.1]} 16... Nxd5 {[%clk
0:01:15.4]} 17. Nxd5 {[%clk 0:02:03.6]} 17... Nb4 {[%clk 0:01:12.4]} 18. Ne3
{[%clk 0:01:52.1]} 18... Nc6 {[%clk 0:01:10.9]} 19. f4 {[%clk 0:01:51.4]} 19...
exf4 {[%clk 0:01:07.6]} 20. Rxf4 {[%clk 0:01:52.1]} 20... Qg5 {[%clk 0:01:03.9]}
21. Raf1 {[%clk 0:01:52.6]} 21... Ne5 {[%clk 0:00:52.7]} 22. b3 {[%clk
0:01:47.8]} 22... h6 {[%clk 0:00:52.3]} 23. Rf5 {[%clk 0:01:40]} 23... Qh4
{[%clk 0:00:45.1]} 24. Nc4 {[%clk 0:01:31.6]} 24... Nxc4 {[%clk 0:00:42.2]} 25.
bxc4 {[%clk 0:01:30.7]} 25... Qe7 {[%clk 0:00:39.1]} 26. Qf4 {[%clk 0:01:27]}
26... f6 {[%clk 0:00:39]} 27. g4 {[%clk 0:01:24.2]} 27... Qd7 {[%clk 0:00:29.7]}
28. h4 {[%clk 0:01:23.6]} 28... Kh7 {[%clk 0:00:22.3]} 29. g5 {[%clk 0:01:07.9]}
29... fxg5 {[%clk 0:00:21]} 30. hxg5 {[%clk 0:01:08.9]} 30... Rxf5 {[%clk
0:00:21.5]} 31. exf5 {[%clk 0:01:08.5]} 31... Qxa4 {[%clk 0:00:15.3]} 32. f6
{[%clk 0:01:05.6]} 32... Qc6+ {[%clk 0:00:09.5]} 33. Kh2 {[%clk 0:01:04.8]}
33... Rf8 {[%clk 0:00:09.6]} 34. Qf5+ {[%clk 0:00:52.5]} 34... g6 {[%clk
0:00:08.7]} 35. Qh3 {[%clk 0:00:53.2]} 35... h5 {[%clk 0:00:07.6]} 36. Re1
{[%clk 0:00:45.6]} 36... Rf7 {[%clk 0:00:07.6]} 37. Qe6 {[%clk 0:00:33.4]} 37...
Qc7 {[%clk 0:00:08.4]} 38. Qe8 {[%clk 0:00:31]} 38... d5+ {[%clk 0:00:08.5]} 39.
Kg2 {[%clk 0:00:26.5]} 39... h4 {[%clk 0:00:09.4]} 40. Re7 {[%clk 0:00:21.4]}
40... Qg3+ {[%clk 0:00:09.3]} 41. Kf1 {[%clk 0:00:20.7]} 41... Qf3+ {[%clk
0:00:10]} 42. Ke1 {[%clk 0:00:20.6]} 42... Qg3+ {[%clk 0:00:08.8]} 43. Ke2
{[%clk 0:00:16.8]} 43... Qg4+ {[%clk 0:00:09.1]} 44. Ke1 {[%clk 0:00:14.8]}
44... Qg1+ {[%clk 0:00:08.1]} 45. Ke2 {[%clk 0:00:15.1]} 45... Qg4+ {[%clk
0:00:08]} 46. Ke1 {[%clk 0:00:13.9]} 46... Qg1+ {[%clk 0:00:08.7]} 47. Ke2
{[%clk 0:00:11.4]} 47... Qg4+ {[%clk 0:00:10]} 1/2-1/2

[Event "*** MasterClass Titled Tuesday Blitz"]
[Site "Chess.com"]
[Date "2017.10.03"]
[Round "4"]
[White "VladimirBelous"]
[Black "Alexander_Donchenko"]
[Result "1-0"]
[WhiteElo "2646"]
[BlackElo "2579"]
[TimeControl "180+2"]
[EndTime "13:52:05 PDT"]
[Termination "VladimirBelous won by resignation"]

1. Nf3 {[%clk 0:03:01.9]} 1... Nf6 {[%clk 0:03:00.4]} 2. g3 {[%clk 0:03:03.1]}
2... b5 {[%clk 0:03:01.4]} 3. d3 {[%clk 0:02:54.7]} 3... Bb7 {[%clk 0:03:02]} 4.
e4 {[%clk 0:02:55.4]} 4... c5 {[%clk 0:02:59.9]} 5. Bg2 {[%clk 0:02:56.2]} 5...
d6 {[%clk 0:02:59.3]} 6. O-O {[%clk 0:02:57.7]} 6... g6 {[%clk 0:02:58.5]} 7. a4
{[%clk 0:02:44.3]} 7... a6 {[%clk 0:02:57.7]} 8. e5 {[%clk 0:02:41.5]} 8... Nd5
{[%clk 0:02:28]} 9. Ng5 {[%clk 0:02:24.4]} 9... h6 {[%clk 0:01:53]} 10. e6
{[%clk 0:01:59]} 10... hxg5 {[%clk 0:01:43.9]} 11. exf7+ {[%clk 0:01:59.8]}
11... Kxf7 {[%clk 0:01:09.2]} 12. c4 {[%clk 0:02:00.7]} 12... Nd7 {[%clk
0:01:01.8]} 13. Bxg5 {[%clk 0:01:53.3]} 13... Bg7 {[%clk 0:00:56.9]} 14. Qd2
{[%clk 0:01:39.4]} 14... N7f6 {[%clk 0:00:36.9]} 15. Bxf6 {[%clk 0:01:39.8]}
15... Bxf6 {[%clk 0:00:35.7]} 16. cxd5 {[%clk 0:01:31.5]} 16... Rh5 {[%clk
0:00:34.3]} 17. Nc3 {[%clk 0:01:30.7]} 17... Qh8 {[%clk 0:00:34]} 18. h4 {[%clk
0:01:20.8]} 18... b4 {[%clk 0:00:34.3]} 19. Ne4 {[%clk 0:00:59.8]} 19... Bxb2
{[%clk 0:00:35.1]} 20. Rae1 {[%clk 0:00:48.2]} 20... Bf6 {[%clk 0:00:24.9]} 21.
Qf4 {[%clk 0:00:44.3]} 21... Rf5 {[%clk 0:00:24.4]} 22. Qg4 {[%clk 0:00:44.9]}
22... Bxd5 {[%clk 0:00:23]} 23. Nxd6+ {[%clk 0:00:46.1]} 23... exd6 {[%clk
0:00:22.4]} 24. Bxd5+ {[%clk 0:00:47.6]} 24... Kg7 {[%clk 0:00:18]} 25. Be4
{[%clk 0:00:48.4]} 25... Qh5 {[%clk 0:00:17.2]} 26. Qxh5 {[%clk 0:00:48.9]}
26... Rxh5 {[%clk 0:00:17.7]} 27. Bxa8 {[%clk 0:00:50.8]} 27... b3 {[%clk
0:00:17.9]} 28. Rb1 {[%clk 0:00:50.8]} 28... b2 {[%clk 0:00:19.1]} 29. Rfd1
{[%clk 0:00:51.1]} 29... Rh8 {[%clk 0:00:16.5]} 30. Bd5 {[%clk 0:00:51]} 30...
Rb8 {[%clk 0:00:17.9]} 31. Bc4 {[%clk 0:00:51.8]} 31... Rb4 {[%clk 0:00:17.8]}
32. Bxa6 {[%clk 0:00:51.3]} 32... d5 {[%clk 0:00:18.4]} 33. Bb5 {[%clk
0:00:50.8]} 33... c4 {[%clk 0:00:19.3]} 34. dxc4 {[%clk 0:00:51.8]} 34... dxc4
{[%clk 0:00:21.2]} 35. Rd7+ {[%clk 0:00:50.9]} 35... Kh6 {[%clk 0:00:22.4]} 36.
Rd6 {[%clk 0:00:43.2]} 36... c3 {[%clk 0:00:16.8]} 37. Bd3 {[%clk 0:00:41.9]}
37... Kg7 {[%clk 0:00:17.7]} 38. a5 {[%clk 0:00:42.1]} 38... Be5 {[%clk
0:00:17.3]} 39. Rd5 {[%clk 0:00:41.1]} 39... Kf6 {[%clk 0:00:17.8]} 40. a6
{[%clk 0:00:42.3]} 40... Ra4 {[%clk 0:00:19.1]} 41. Rd7 {[%clk 0:00:40.7]} 41...
Ke6 {[%clk 0:00:19]} 42. Rb7 {[%clk 0:00:39.3]} 42... Bd4 {[%clk 0:00:19.9]} 43.
Bxg6 {[%clk 0:00:36.9]} 43... Rxa6 {[%clk 0:00:20.2]} 44. Bd3 {[%clk 0:00:37.5]}
44... Ra5 {[%clk 0:00:16.9]} 45. Kf1 {[%clk 0:00:37.4]} 45... Ra8 {[%clk
0:00:17.2]} 46. Ke2 {[%clk 0:00:37]} 46... Rf8 {[%clk 0:00:18.6]} 47. f4 {[%clk
0:00:37.4]} 47... Rg8 {[%clk 0:00:19.5]} 48. Kf3 {[%clk 0:00:38]} 48... Kd5
{[%clk 0:00:20.8]} 49. Rb5+ {[%clk 0:00:38.5]} 49... Kc6 {[%clk 0:00:21.6]} 50.
Rb4 {[%clk 0:00:39.7]} 50... Kc5 {[%clk 0:00:22.8]} 51. Rc4+ {[%clk 0:00:40.9]}
51... Kd5 {[%clk 0:00:24.2]} 52. Rc7 {[%clk 0:00:41.8]} 52... Re8 {[%clk
0:00:24.5]} 53. Kg4 {[%clk 0:00:34.7]} 53... Re3 {[%clk 0:00:24.7]} 54. Bf5
{[%clk 0:00:34.8]} 54... Bb6 {[%clk 0:00:15.9]} 55. Rd7+ {[%clk 0:00:35.4]}
55... Kc6 {[%clk 0:00:16.8]} 56. Rbd1 {[%clk 0:00:36.7]} 56... Bc5 {[%clk
0:00:14.7]} 57. Rd8 {[%clk 0:00:36.7]} 57... Re2 {[%clk 0:00:14]} 58. Rc8+
{[%clk 0:00:37.5]} 58... Kb5 {[%clk 0:00:14.4]} 59. Rd5 {[%clk 0:00:37.6]} 59...
c2 {[%clk 0:00:12.1]} 60. Rdxc5+ {[%clk 0:00:38.3]} 60... Kb6 {[%clk 0:00:13.2]}
61. Bxc2 {[%clk 0:00:35.6]} 61... Rxc2 {[%clk 0:00:13.5]} 62. Rxc2 {[%clk
0:00:35.9]} 62... b1=Q {[%clk 0:00:15]} 63. Rb8+ {[%clk 0:00:36.9]} 1-0

[Event "*** MasterClass Titled Tuesday Blitz"]
[Site "Chess.com"]
[Date "2017.10.03"]
[Round "4"]
[White "chessking2151"]
[Black "Robin-Side"]
[Result "1/2-1/2"]
[WhiteElo "2366"]
[BlackElo "2582"]
[TimeControl "180+2"]
[EndTime "13:52:08 PDT"]
[Termination "Game drawn by repetition"]

1. e4 {[%clk 0:03:01.9]} 1... g6 {[%clk 0:02:59.9]} 2. d4 {[%clk 0:03:02.1]}
2... Bg7 {[%clk 0:03:01.4]} 3. Nf3 {[%clk 0:03:03.7]} 3... e6 {[%clk 0:03:02.5]}
4. h4 {[%clk 0:02:53.1]} 4... d5 {[%clk 0:02:59.1]} 5. e5 {[%clk 0:02:51.9]}
5... h6 {[%clk 0:02:53.1]} 6. h5 {[%clk 0:02:51.8]} 6... g5 {[%clk 0:02:54.4]}
7. c3 {[%clk 0:02:52.7]} 7... Ne7 {[%clk 0:02:54.5]} 8. Bd3 {[%clk 0:02:48.7]}
8... c5 {[%clk 0:02:55.3]} 9. Bc2 {[%clk 0:02:47]} 9... Nbc6 {[%clk 0:02:54.7]}
10. Be3 {[%clk 0:02:34.4]} 10... cxd4 {[%clk 0:02:51.9]} 11. cxd4 {[%clk
0:02:35.1]} 11... Qb6 {[%clk 0:02:51.7]} 12. b3 {[%clk 0:02:17.5]} 12... Nb4
{[%clk 0:02:51]} 13. Nc3 {[%clk 0:02:11.6]} 13... Nxc2+ {[%clk 0:02:49.6]} 14.
Qxc2 {[%clk 0:02:13.5]} 14... Bd7 {[%clk 0:02:50.7]} 15. Rc1 {[%clk 0:02:12.3]}
15... Rc8 {[%clk 0:02:42.9]} 16. Qb2 {[%clk 0:02:03.6]} 16... Nf5 {[%clk
0:02:40.7]} 17. g4 {[%clk 0:02:01.3]} 17... Nxe3 {[%clk 0:02:39.9]} 18. fxe3
{[%clk 0:02:03.2]} 18... Bf8 {[%clk 0:02:27.9]} 19. Kf2 {[%clk 0:02:02]} 19...
Bb4 {[%clk 0:02:24.2]} 20. Na4 {[%clk 0:01:52.9]} 20... Qa5 {[%clk 0:02:12.7]}
21. Rxc8+ {[%clk 0:01:50.4]} 21... Bxc8 {[%clk 0:02:14.5]} 22. a3 {[%clk
0:01:47.8]} 22... Be7 {[%clk 0:02:07.6]} 23. Rc1 {[%clk 0:01:47.6]} 23... Bd7
{[%clk 0:02:07.7]} 24. Nc5 {[%clk 0:01:46.6]} 24... Bc6 {[%clk 0:01:42.3]} 25.
b4 {[%clk 0:01:40.2]} 25... Qb6 {[%clk 0:01:41.5]} 26. a4 {[%clk 0:01:34.3]}
26... a6 {[%clk 0:01:32.2]} 27. a5 {[%clk 0:01:22.4]} 27... Qb5 {[%clk
0:01:29.7]} 28. Qb1 {[%clk 0:01:10.5]} 28... O-O {[%clk 0:01:22.3]} 29. Nxe6
{[%clk 0:00:56]} 29... fxe6 {[%clk 0:00:55.8]} 30. Qg6+ {[%clk 0:00:55.8]} 30...
Kh8 {[%clk 0:00:56.7]} 31. Qxh6+ {[%clk 0:00:55.6]} 31... Kg8 {[%clk 0:00:57.8]}
32. Qg6+ {[%clk 0:00:30.8]} 32... Kh8 {[%clk 0:00:58.3]} 33. h6 {[%clk
0:00:13.7]} 33... Rg8 {[%clk 0:00:47.5]} 34. Qf7 {[%clk 0:00:13.7]} 34... Qxb4
{[%clk 0:00:35.6]} 35. h7 {[%clk 0:00:09.9]} 35... Rf8 {[%clk 0:00:34.3]} 36.
Qxe6 {[%clk 0:00:09.3]} 36... Qb2+ {[%clk 0:00:34.1]} 37. Kg3 {[%clk 0:00:09]}
37... Qxc1 {[%clk 0:00:27.9]} 38. Qxe7 {[%clk 0:00:10]} 38... Rxf3+ {[%clk
0:00:12.7]} 39. Kxf3 {[%clk 0:00:11.9]} 39... Qf1+ {[%clk 0:00:13.1]} 40. Kg3
{[%clk 0:00:13.4]} 40... Qg1+ {[%clk 0:00:13.9]} 41. Kf3 {[%clk 0:00:14.9]}
41... Qh1+ {[%clk 0:00:12]} 42. Kf2 {[%clk 0:00:10.9]} 42... Qh2+ {[%clk
0:00:11.8]} 43. Kf3 {[%clk 0:00:11]} 43... Qh3+ {[%clk 0:00:12.7]} 44. Kf2
{[%clk 0:00:11.8]} 44... Qh4+ {[%clk 0:00:13.2]} 45. Kf1 {[%clk 0:00:13]} 45...
Qxg4 {[%clk 0:00:12.2]} 46. Qf7 {[%clk 0:00:09.8]} 46... Qh3+ {[%clk 0:00:11.3]}
47. Kf2 {[%clk 0:00:07.8]} 47... Qh2+ {[%clk 0:00:10.6]} 48. Ke1 {[%clk
0:00:07.8]} 48... Qh1+ {[%clk 0:00:08.8]} 49. Kf2 {[%clk 0:00:07.7]} 49... Qh2+
{[%clk 0:00:08.3]} 50. Ke1 {[%clk 0:00:08]} 50... Qh4+ {[%clk 0:00:09.2]} 51.
Kd2 {[%clk 0:00:06.8]} 51... Qh2+ {[%clk 0:00:07.6]} 52. Kc3 {[%clk 0:00:07.2]}
52... Qxh7 {[%clk 0:00:04.8]} 53. Qf8+ {[%clk 0:00:08.3]} 53... Qg8 {[%clk
0:00:05.9]} 54. Qh6+ {[%clk 0:00:10.2]} 54... Qh7 {[%clk 0:00:07.1]} 55. Qf8+
{[%clk 0:00:12.1]} 55... Qg8 {[%clk 0:00:08.1]} 56. Qh6+ {[%clk 0:00:13.5]}
56... Qh7 {[%clk 0:00:08.3]} 57. Qf8+ {[%clk 0:00:15.4]} 57... Qg8 {[%clk
0:00:09]} 1/2-1/2